[Event "Late-Titled-Tuesday-Blitz-June-18-2024"]
[Site "Chess.com"]
[Date "2024.06.18"]
[Round "5"]
[White "matagordo"]
[Black "ManMish2"]
[Result "1-0"]
[WhiteElo "2412"]
[BlackElo "2648"]
[TimeControl "180+1"]
[EndTime "14:57:40 PDT"]
[Termination "matagordo won on time"]

1. d4 {[%clk 0:03:00.9]} 1... d5 {[%clk 0:02:58.1]} 2. Bf4 {[%clk 0:03:01.3]}
2... Nf6 {[%clk 0:02:56.9]} 3. e3 {[%clk 0:03:01.2]} 3... c5 {[%clk 0:02:56.8]}
4. Nf3 {[%clk 0:03:01.3]} 4... Nc6 {[%clk 0:02:56.5]} 5. Nbd2 {[%clk 0:03:01.5]}
5... Bf5 {[%clk 0:02:49.6]} 6. dxc5 {[%clk 0:03:01.3]} 6... e6 {[%clk
0:02:49.4]} 7. Nd4 {[%clk 0:03:01.4]} 7... Bxc5 {[%clk 0:02:48.6]} 8. Nxf5
{[%clk 0:03:01.1]} 8... exf5 {[%clk 0:02:49.5]} 9. c3 {[%clk 0:03:01.9]} 9...
Ne4 {[%clk 0:02:28.8]} 10. Nb3 {[%clk 0:02:36.9]} 10... Bb6 {[%clk 0:02:12.5]}
11. Bd3 {[%clk 0:02:25.6]} 11... O-O {[%clk 0:02:08.5]} 12. O-O {[%clk
0:02:18.1]} 12... Qf6 {[%clk 0:01:57.3]} 13. Nd4 {[%clk 0:02:06.9]} 13... Ne5
{[%clk 0:01:24.1]} 14. Bxe4 {[%clk 0:01:59.3]} 14... dxe4 {[%clk 0:01:01.8]} 15.
Qh5 {[%clk 0:01:35.4]} 15... g6 {[%clk 0:00:48.5]} 16. Bg5 {[%clk 0:01:35.5]}
16... Qd6 {[%clk 0:00:25.3]} 17. Qh4 {[%clk 0:01:34.1]} 17... f6 {[%clk
0:00:18.6]} 18. Bf4 {[%clk 0:01:33.8]} 18... Qe7 {[%clk 0:00:07.9]} 19. Qg3
{[%clk 0:01:25.1]} 19... Kh8 {[%clk 0:00:05.2]} 20. a4 {[%clk 0:01:11.9]} 20...
Nd3 {[%clk 0:00:05.1]} 21. Bd6 {[%clk 0:01:03.2]} 21... Qd7 {[%clk 0:00:05.3]}
22. Bxf8 {[%clk 0:01:02.6]} 22... Rxf8 {[%clk 0:00:06.2]} 23. Nb5 {[%clk
0:01:00.3]} 23... a6 {[%clk 0:00:05.4]} 24. Qd6 {[%clk 0:01:00.4]} 24... Qxd6
{[%clk 0:00:04.9]} 25. Nxd6 {[%clk 0:01:01.3]} 25... Nxb2 {[%clk 0:00:03.2]} 26.
Rab1 {[%clk 0:01:00.5]} 26... Nxa4 {[%clk 0:00:02.5]} 27. Nc4 {[%clk 0:00:30.7]}
27... Bc5 {[%clk 0:00:01.9]} 28. Rxb7 {[%clk 0:00:29.9]} 28... Nxc3 {[%clk
0:00:02.5]} 29. Na5 {[%clk 0:00:27.3]} 29... Rd8 {[%clk 0:00:02.6]} 30. g3
{[%clk 0:00:25.5]} 30... Nd5 {[%clk 0:00:02]} 31. Rd1 {[%clk 0:00:23.6]} 31...
Bb4 {[%clk 0:00:01.9]} 32. Nc6 {[%clk 0:00:21.2]} 32... Rc8 {[%clk 0:00:01.8]}
33. Rxd5 {[%clk 0:00:17.5]} 1-0

[Event "Late-Titled-Tuesday-Blitz-June-18-2024"]
[Site "Chess.com"]
[Date "2024.06.18"]
[Round "5"]
[White "Slovineanu"]
[Black "dolynachess"]
[Result "0-1"]
[WhiteElo "2546"]
[BlackElo "2561"]
[TimeControl "180+1"]
[EndTime "14:57:42 PDT"]
[Termination "dolynachess won on time"]

1. d4 {[%clk 0:02:57.9]} 1... Nf6 {[%clk 0:02:59.4]} 2. Nf3 {[%clk 0:02:55.6]}
2... c5 {[%clk 0:02:58.4]} 3. d5 {[%clk 0:02:55.5]} 3... g6 {[%clk 0:02:57.9]}
4. Nc3 {[%clk 0:02:54.8]} 4... Bg7 {[%clk 0:02:56.8]} 5. e4 {[%clk 0:02:55.5]}
5... d6 {[%clk 0:02:57.2]} 6. Bb5+ {[%clk 0:02:54.7]} 6... Nfd7 {[%clk
0:02:54.7]} 7. a4 {[%clk 0:02:54.8]} 7... O-O {[%clk 0:02:52.5]} 8. O-O {[%clk
0:02:54.2]} 8... a6 {[%clk 0:02:49.7]} 9. Bd3 {[%clk 0:02:49.8]} 9... Ne5 {[%clk
0:02:27.8]} 10. Nxe5 {[%clk 0:02:48.8]} 10... Bxe5 {[%clk 0:02:28.7]} 11. Bh6
{[%clk 0:02:43.7]} 11... Re8 {[%clk 0:02:28.7]} 12. Qd2 {[%clk 0:02:36.4]} 12...
Nd7 {[%clk 0:02:19.1]} 13. Nd1 {[%clk 0:02:29.3]} 13... Rb8 {[%clk 0:02:14.9]}
14. a5 {[%clk 0:02:22.6]} 14... b5 {[%clk 0:02:11.3]} 15. axb6 {[%clk
0:02:22.6]} 15... Qxb6 {[%clk 0:02:10.7]} 16. c3 {[%clk 0:02:20.9]} 16... Bh8
{[%clk 0:01:53.4]} 17. Ra2 {[%clk 0:02:12.6]} 17... Ne5 {[%clk 0:01:50.1]} 18.
Ne3 {[%clk 0:01:59.7]} 18... Nxd3 {[%clk 0:01:36.4]} 19. Qxd3 {[%clk 0:01:59.5]}
19... Bd7 {[%clk 0:01:35.5]} 20. Rfa1 {[%clk 0:01:38.7]} 20... Bb5 {[%clk
0:01:29]} 21. c4 {[%clk 0:01:10.4]} 21... Bd7 {[%clk 0:01:28.4]} 22. Nd1 {[%clk
0:01:09.7]} 22... Ra8 {[%clk 0:01:22.5]} 23. Bd2 {[%clk 0:01:09.7]} 23... a5
{[%clk 0:01:10.9]} 24. Bc3 {[%clk 0:01:08.1]} 24... a4 {[%clk 0:01:05.7]} 25.
Bxh8 {[%clk 0:01:07]} 25... Kxh8 {[%clk 0:01:06.6]} 26. Nc3 {[%clk 0:01:02]}
26... Reb8 {[%clk 0:01:04.2]} 27. h3 {[%clk 0:01:00.7]} 27... Qb3 {[%clk
0:01:02.2]} 28. Qe2 {[%clk 0:00:45.6]} 28... Rb4 {[%clk 0:00:55.9]} 29. e5
{[%clk 0:00:15.4]} 29... Qxc4 {[%clk 0:00:52.8]} 30. Qf3 {[%clk 0:00:10.2]}
30... Qf4 {[%clk 0:00:47.6]} 31. Qxf4 {[%clk 0:00:08.7]} 31... Rxf4 {[%clk
0:00:48.5]} 32. exd6 {[%clk 0:00:08.1]} 32... exd6 {[%clk 0:00:49.4]} 33. f3
{[%clk 0:00:08.3]} 33... Rb4 {[%clk 0:00:47.4]} 34. Ne4 {[%clk 0:00:08.1]} 34...
Ra6 {[%clk 0:00:43.5]} 35. Kf2 {[%clk 0:00:05.1]} 35... Kg7 {[%clk 0:00:42.3]}
36. Ke3 {[%clk 0:00:05.6]} 36... Rab6 {[%clk 0:00:39.3]} 37. Kd3 {[%clk
0:00:04.1]} 37... Rd4+ {[%clk 0:00:33.3]} 38. Kc3 {[%clk 0:00:03.8]} 38... Rxd5
{[%clk 0:00:33.8]} 39. Nd2 {[%clk 0:00:01.4]} 39... Bf5 {[%clk 0:00:28.9]} 0-1

[Event "Late-Titled-Tuesday-Blitz-June-18-2024"]
[Site "Chess.com"]
[Date "2024.06.18"]
[Round "5"]
[White "GiorgianBarbosa"]
[Black "slidingknight2775"]
[Result "0-1"]
[WhiteElo "2499"]
[BlackElo "2694"]
[TimeControl "180+1"]
[EndTime "14:57:44 PDT"]
[Termination "slidingknight2775 won by checkmate"]

1. d4 {[%clk 0:02:59.9]} 1... Nf6 {[%clk 0:03:00]} 2. Bf4 {[%clk 0:02:59.7]}
2... c5 {[%clk 0:02:58.5]} 3. e3 {[%clk 0:02:57.3]} 3... Nd5 {[%clk 0:02:58.5]}
4. Bg3 {[%clk 0:02:56.8]} 4... Qb6 {[%clk 0:02:58.4]} 5. Qc1 {[%clk 0:02:54.6]}
5... cxd4 {[%clk 0:02:57.8]} 6. Bc4 {[%clk 0:02:54.1]} 6... Nf6 {[%clk
0:02:55.3]} 7. exd4 {[%clk 0:02:45.1]} 7... Qxd4 {[%clk 0:02:56.2]} 8. Nd2
{[%clk 0:02:44.5]} 8... g6 {[%clk 0:02:39.5]} 9. Ngf3 {[%clk 0:02:42.9]} 9...
Qb6 {[%clk 0:02:39.3]} 10. Ne5 {[%clk 0:02:38.3]} 10... d5 {[%clk 0:02:35.1]}
11. Bd3 {[%clk 0:02:28.3]} 11... Bg7 {[%clk 0:02:29.3]} 12. Ndf3 {[%clk
0:02:28.1]} 12... O-O {[%clk 0:02:25.9]} 13. h4 {[%clk 0:02:26.5]} 13... Ne4
{[%clk 0:02:10.6]} 14. h5 {[%clk 0:02:19.5]} 14... Nxg3 {[%clk 0:02:06.6]} 15.
fxg3 {[%clk 0:02:20.4]} 15... Nc6 {[%clk 0:01:08.6]} 16. Qf4 {[%clk 0:02:04.9]}
16... Nxe5 {[%clk 0:00:58.8]} 17. Nxe5 {[%clk 0:01:49.1]} 17... Qxb2 {[%clk
0:00:52.7]} 18. hxg6 {[%clk 0:01:36.6]} 18... Qxa1+ {[%clk 0:00:26.8]} 19. Kd2
{[%clk 0:01:34.4]} 19... Qxe5 {[%clk 0:00:26.2]} 20. gxh7+ {[%clk 0:00:25.5]}
20... Kh8 {[%clk 0:00:25.5]} 21. Qh4 {[%clk 0:00:26.4]} 21... Bf5 {[%clk
0:00:19.4]} 22. Re1 {[%clk 0:00:22.3]} 22... Qc3+ {[%clk 0:00:18]} 23. Kd1
{[%clk 0:00:23.2]} 23... Qa1+ {[%clk 0:00:16.1]} 24. Ke2 {[%clk 0:00:22.9]}
24... Bxd3+ {[%clk 0:00:16.3]} 25. cxd3 {[%clk 0:00:21.3]} 25... Qe5+ {[%clk
0:00:16.6]} 26. Kf1 {[%clk 0:00:21.5]} 26... Qf6+ {[%clk 0:00:16.8]} 27. Qxf6
{[%clk 0:00:21.8]} 27... Bxf6 {[%clk 0:00:17.7]} 28. Rb1 {[%clk 0:00:22.3]}
28... b6 {[%clk 0:00:17.6]} 29. Rb5 {[%clk 0:00:22.5]} 29... e6 {[%clk
0:00:17.4]} 30. Ke2 {[%clk 0:00:23.4]} 30... Kxh7 {[%clk 0:00:18]} 31. Kf3
{[%clk 0:00:24.3]} 31... Kg7 {[%clk 0:00:18.6]} 32. Rb3 {[%clk 0:00:24.5]} 32...
Rac8 {[%clk 0:00:19.2]} 33. Ra3 {[%clk 0:00:25.4]} 33... Rc3 {[%clk 0:00:19.4]}
34. Rxa7 {[%clk 0:00:25.1]} 34... Rxd3+ {[%clk 0:00:20]} 35. Kg4 {[%clk
0:00:26]} 35... Kg6 {[%clk 0:00:19.9]} 36. a4 {[%clk 0:00:24]} 36... Rd4+ {[%clk
0:00:20.2]} 37. Kf3 {[%clk 0:00:23.8]} 37... Bg7 {[%clk 0:00:19.1]} 38. a5
{[%clk 0:00:23.6]} 38... bxa5 {[%clk 0:00:19.4]} 39. Rxa5 {[%clk 0:00:24.5]}
39... Rc8 {[%clk 0:00:19.9]} 40. Ra3 {[%clk 0:00:24]} 40... Rdc4 {[%clk
0:00:20.4]} 41. Kf2 {[%clk 0:00:20.7]} 41... Rc2+ {[%clk 0:00:19.2]} 42. Kg1
{[%clk 0:00:19.8]} 42... Rc1+ {[%clk 0:00:19.7]} 43. Kh2 {[%clk 0:00:20.7]}
43... Rh8# {[%clk 0:00:19.8]} 0-1

[Event "Late-Titled-Tuesday-Blitz-June-18-2024"]
[Site "Chess.com"]
[Date "2024.06.18"]
[Round "5"]
[White "Sic_Transit_GM"]
[Black "Freeeeeeeeeeeeeeeeee"]
[Result "1-0"]
[WhiteElo "2530"]
[BlackElo "1881"]
[TimeControl "180+1"]
[EndTime "14:57:48 PDT"]
[Termination "Sic_Transit_GM won on time"]

1. Nf3 {[%clk 0:03:00.9]} 1... Nf6 {[%clk 0:02:56.2]} 2. c4 {[%clk 0:03:01.2]}
2... e6 {[%clk 0:02:49.1]} 3. e3 {[%clk 0:02:56.2]} 3... g6 {[%clk 0:02:47.5]}
4. b3 {[%clk 0:02:56]} 4... Bg7 {[%clk 0:02:42.1]} 5. Bb2 {[%clk 0:02:56.4]}
5... O-O {[%clk 0:02:43]} 6. Nc3 {[%clk 0:02:56.7]} 6... d5 {[%clk 0:02:40.4]}
7. Be2 {[%clk 0:02:57.2]} 7... Nc6 {[%clk 0:02:40.6]} 8. d4 {[%clk 0:02:55.2]}
8... b6 {[%clk 0:02:37.7]} 9. O-O {[%clk 0:02:54.9]} 9... Bb7 {[%clk 0:02:37.8]}
10. Rc1 {[%clk 0:02:53.8]} 10... Qe7 {[%clk 0:02:37.3]} 11. Nb5 {[%clk
0:02:53.1]} 11... Rfc8 {[%clk 0:02:30.3]} 12. Ba3 {[%clk 0:02:49.8]} 12... Nb4
{[%clk 0:02:29]} 13. Qd2 {[%clk 0:02:48.2]} 13... a5 {[%clk 0:02:28.6]} 14. Ne5
{[%clk 0:02:41.6]} 14... Ne4 {[%clk 0:02:25.2]} 15. Qb2 {[%clk 0:02:39.2]} 15...
c6 {[%clk 0:02:16.5]} 16. Nc3 {[%clk 0:02:38.6]} 16... Bxe5 {[%clk 0:02:07.8]}
17. dxe5 {[%clk 0:02:38.5]} 17... Nxc3 {[%clk 0:01:53.3]} 18. Rxc3 {[%clk
0:02:33.6]} 18... c5 {[%clk 0:01:53]} 19. Rcc1 {[%clk 0:02:26.9]} 19... dxc4
{[%clk 0:01:49.3]} 20. Bxc4 {[%clk 0:02:26.5]} 20... Bd5 {[%clk 0:01:43.1]} 21.
Bb5 {[%clk 0:02:21.4]} 21... Bc6 {[%clk 0:01:36.2]} 22. Be2 {[%clk 0:02:08.7]}
22... Qg5 {[%clk 0:01:28.8]} 23. g3 {[%clk 0:02:08.5]} 23... Qf5 {[%clk
0:01:19.4]} 24. Rfd1 {[%clk 0:01:46.8]} 24... Qe4 {[%clk 0:01:08.7]} 25. f3
{[%clk 0:01:46.1]} 25... Qxe3+ {[%clk 0:01:08.2]} 26. Kg2 {[%clk 0:01:45.8]}
26... Rd8 {[%clk 0:00:55.3]} 27. Bxb4 {[%clk 0:01:41.3]} 27... axb4 {[%clk
0:00:54.5]} 28. Rd6 {[%clk 0:01:40.5]} 28... Rxd6 {[%clk 0:00:49]} 29. exd6
{[%clk 0:01:41.4]} 29... Rxa2 {[%clk 0:00:39.5]} 30. Qxa2 {[%clk 0:01:32.2]}
30... Qxc1 {[%clk 0:00:38.9]} 31. Qa6 {[%clk 0:01:32]} 31... Qe3 {[%clk
0:00:30.9]} 32. Kh3 {[%clk 0:01:07]} 32... Bd7 {[%clk 0:00:18]} 33. Qb7 {[%clk
0:00:38.3]} 33... Qxe2 {[%clk 0:00:12.2]} 34. Qxd7 {[%clk 0:00:38.7]} 34... Qf1+
{[%clk 0:00:11.6]} 35. Kg4 {[%clk 0:00:38.1]} 35... h5+ {[%clk 0:00:11.4]} 36.
Kg5 {[%clk 0:00:35.6]} 36... Qc1+ {[%clk 0:00:11.4]} 37. Kf6 {[%clk 0:00:35.2]}
37... Qc3+ {[%clk 0:00:10.9]} 38. Ke7 {[%clk 0:00:35.1]} 38... Kg7 {[%clk
0:00:07.3]} 39. Qe8 {[%clk 0:00:35.6]} 39... Qf6+ {[%clk 0:00:07.6]} 40. Kd7
{[%clk 0:00:36]} 40... c4 {[%clk 0:00:07.3]} 41. bxc4 {[%clk 0:00:28.6]} 41...
b3 {[%clk 0:00:07.7]} 42. Kc7 {[%clk 0:00:29.1]} 42... b2 {[%clk 0:00:07.7]} 43.
Qb5 {[%clk 0:00:29.7]} 1-0

[Event "Late-Titled-Tuesday-Blitz-June-18-2024"]
[Site "Chess.com"]
[Date "2024.06.18"]
[Round "5"]
[White "VacheH009"]
[Black "Evan_Attaker"]
[Result "0-1"]
[WhiteElo "2535"]
[BlackElo "2751"]
[TimeControl "180+1"]
[EndTime "14:57:50 PDT"]
[Termination "Evan_Attaker won on time"]

1. c4 {[%clk 0:03:00.9]} 1... c5 {[%clk 0:02:59.2]} 2. Nc3 {[%clk 0:02:59.4]}
2... b6 {[%clk 0:02:58.7]} 3. Nf3 {[%clk 0:02:57.2]} 3... Bb7 {[%clk 0:02:57.4]}
4. b3 {[%clk 0:02:53.4]} 4... Nf6 {[%clk 0:02:57.3]} 5. Bb2 {[%clk 0:02:53.7]}
5... e6 {[%clk 0:02:56.7]} 6. e3 {[%clk 0:02:52]} 6... Be7 {[%clk 0:02:53.9]} 7.
Be2 {[%clk 0:02:51.3]} 7... d6 {[%clk 0:02:53.4]} 8. O-O {[%clk 0:02:50.3]} 8...
a6 {[%clk 0:02:52.7]} 9. d4 {[%clk 0:02:48.7]} 9... O-O {[%clk 0:02:51.5]} 10.
Qc2 {[%clk 0:02:37.8]} 10... Re8 {[%clk 0:02:49.5]} 11. Rfd1 {[%clk 0:02:36.2]}
11... Nbd7 {[%clk 0:02:48.9]} 12. Rd2 {[%clk 0:02:22.1]} 12... Qc7 {[%clk
0:02:46.8]} 13. Rad1 {[%clk 0:02:21.2]} 13... Rac8 {[%clk 0:02:46.6]} 14. dxc5
{[%clk 0:02:04.9]} 14... Nxc5 {[%clk 0:02:43.8]} 15. Nd4 {[%clk 0:01:50]} 15...
Red8 {[%clk 0:02:38.7]} 16. Bf3 {[%clk 0:01:48.6]} 16... Bxf3 {[%clk 0:02:38.5]}
17. Nxf3 {[%clk 0:01:49.5]} 17... Qb7 {[%clk 0:02:37.7]} 18. Qb1 {[%clk
0:01:39.5]} 18... b5 {[%clk 0:02:36.3]} 19. cxb5 {[%clk 0:01:35.3]} 19... axb5
{[%clk 0:02:37.2]} 20. b4 {[%clk 0:01:21.2]} 20... Nce4 {[%clk 0:02:34.2]} 21.
Nxe4 {[%clk 0:01:21]} 21... Nxe4 {[%clk 0:02:33.6]} 22. Rc2 {[%clk 0:01:20.2]}
22... d5 {[%clk 0:02:28.1]} 23. Bd4 {[%clk 0:00:53.4]} 23... Rxc2 {[%clk
0:02:25.3]} 24. Qxc2 {[%clk 0:00:54.3]} 24... Bxb4 {[%clk 0:02:24.7]} 25. Rb1
{[%clk 0:00:36.3]} 25... Bf8 {[%clk 0:02:24.2]} 26. Qd3 {[%clk 0:00:29.9]} 26...
Qa6 {[%clk 0:02:17.1]} 27. Nd2 {[%clk 0:00:18.3]} 27... Qxa2 {[%clk 0:02:07.7]}
28. Nxe4 {[%clk 0:00:14.3]} 28... dxe4 {[%clk 0:02:08.6]} 29. Qxb5 {[%clk
0:00:14.3]} 29... Rc8 {[%clk 0:01:54.6]} 30. h3 {[%clk 0:00:12.6]} 30... Rc2
{[%clk 0:01:54]} 31. Rf1 {[%clk 0:00:11.9]} 31... h6 {[%clk 0:01:46.9]} 32. Qe5
{[%clk 0:00:12]} 32... Qd5 {[%clk 0:01:46.3]} 33. Qxd5 {[%clk 0:00:11.9]} 33...
exd5 {[%clk 0:01:47.2]} 34. Rb1 {[%clk 0:00:11.9]} 34... Rc8 {[%clk 0:01:45.3]}
35. Rb5 {[%clk 0:00:12.1]} 35... Rd8 {[%clk 0:01:45.5]} 36. Rb7 {[%clk
0:00:12.3]} 36... g6 {[%clk 0:01:45.1]} 37. Kf1 {[%clk 0:00:11.5]} 37... Bg7
{[%clk 0:01:45.6]} 38. Bxg7 {[%clk 0:00:09.3]} 38... Kxg7 {[%clk 0:01:46.5]} 39.
Rb4 {[%clk 0:00:08.2]} 39... Kf6 {[%clk 0:01:46.3]} 40. Rb6+ {[%clk 0:00:08.1]}
40... Ke5 {[%clk 0:01:46.5]} 41. Rb7 {[%clk 0:00:08.6]} 41... f6 {[%clk
0:01:45.1]} 42. g4 {[%clk 0:00:07.6]} 42... h5 {[%clk 0:01:40.8]} 43. gxh5
{[%clk 0:00:07]} 43... gxh5 {[%clk 0:01:41.7]} 44. Rh7 {[%clk 0:00:07.4]} 44...
d4 {[%clk 0:01:39.2]} 45. Rxh5+ {[%clk 0:00:07.7]} 45... f5 {[%clk 0:01:39.3]}
46. exd4+ {[%clk 0:00:07.5]} 46... Rxd4 {[%clk 0:01:39.9]} 47. Rh8 {[%clk
0:00:07]} 47... Ra4 {[%clk 0:01:39.8]} 48. Kg2 {[%clk 0:00:06.9]} 48... Ra2
{[%clk 0:01:37.1]} 49. Kg1 {[%clk 0:00:02.5]} 49... Kf4 {[%clk 0:01:36.9]} 50.
Rg8 {[%clk 0:00:03.1]} 50... Ra3 {[%clk 0:01:34]} 51. Kg2 {[%clk 0:00:01.9]}
51... Ra2 {[%clk 0:01:33.9]} 52. Kg1 {[%clk 0:00:01.8]} 52... Ra6 {[%clk
0:01:29.6]} 53. Rg3 {[%clk 0:00:02]} 53... Rh6 {[%clk 0:01:28.5]} 54. Kg2 {[%clk
0:00:01.8]} 54... Ke5 {[%clk 0:01:28.5]} 55. Re3 {[%clk 0:00:02.1]} 55... f4
{[%clk 0:01:28.2]} 56. Rb3 {[%clk 0:00:02.5]} 56... Rg6+ {[%clk 0:01:28.1]} 57.
Kh2 {[%clk 0:00:02.2]} 57... f3 {[%clk 0:01:27.8]} 58. Rb2 {[%clk 0:00:02.5]}
58... Kf4 {[%clk 0:01:24.9]} 59. h4 {[%clk 0:00:01.6]} 59... Kg4 {[%clk
0:01:19.2]} 60. Rb4 {[%clk 0:00:01]} 60... Re6 {[%clk 0:01:19.3]} 61. h5 {[%clk
0:00:01.3]} 61... Kf4 {[%clk 0:01:18.2]} 0-1

[Event "Late-Titled-Tuesday-Blitz-June-18-2024"]
[Site "Chess.com"]
[Date "2024.06.18"]
[Round "5"]
[White "chess94cu"]
[Black "Mysterio47"]
[Result "1/2-1/2"]
[WhiteElo "2631"]
[BlackElo "2840"]
[TimeControl "180+1"]
[EndTime "14:57:51 PDT"]
[Termination "Game drawn by repetition"]

1. d4 {[%clk 0:03:00.9]} 1... d6 {[%clk 0:03:00.9]} 2. c4 {[%clk 0:02:58.7]}
2... e5 {[%clk 0:03:00.3]} 3. Nc3 {[%clk 0:02:58.8]} 3... Nf6 {[%clk 0:02:59.4]}
4. g3 {[%clk 0:02:55.8]} 4... Nbd7 {[%clk 0:02:57.9]} 5. Bg2 {[%clk 0:02:54.9]}
5... g6 {[%clk 0:02:58.6]} 6. Nf3 {[%clk 0:02:54.7]} 6... Bg7 {[%clk 0:02:59.2]}
7. O-O {[%clk 0:02:54.7]} 7... O-O {[%clk 0:02:59.8]} 8. h3 {[%clk 0:02:54.5]}
8... exd4 {[%clk 0:03:00.5]} 9. Nxd4 {[%clk 0:02:53.9]} 9... Re8 {[%clk
0:03:01.4]} 10. e4 {[%clk 0:02:52.6]} 10... Nc5 {[%clk 0:03:02]} 11. Re1 {[%clk
0:02:51.8]} 11... h6 {[%clk 0:03:02.7]} 12. b3 {[%clk 0:02:42.9]} 12... a5
{[%clk 0:03:02.9]} 13. Bb2 {[%clk 0:02:38]} 13... Nfd7 {[%clk 0:03:02.3]} 14. f4
{[%clk 0:02:24.2]} 14... c6 {[%clk 0:03:02.5]} 15. Qd2 {[%clk 0:02:22.6]} 15...
h5 {[%clk 0:02:50.8]} 16. Rad1 {[%clk 0:02:21.7]} 16... h4 {[%clk 0:02:50.7]}
17. g4 {[%clk 0:02:21.8]} 17... Ne6 {[%clk 0:02:10.3]} 18. Nf3 {[%clk
0:01:53.1]} 18... g5 {[%clk 0:01:56.5]} 19. Ne2 {[%clk 0:01:48.3]} 19... Bxb2
{[%clk 0:01:50.8]} 20. Qxb2 {[%clk 0:01:49.2]} 20... gxf4 {[%clk 0:01:50.5]} 21.
Rxd6 {[%clk 0:01:42.5]} 21... Qf6 {[%clk 0:01:38.9]} 22. Qd2 {[%clk 0:01:32.4]}
22... Ne5 {[%clk 0:01:34.6]} 23. Ned4 {[%clk 0:01:24.4]} 23... Nxf3+ {[%clk
0:01:26.1]} 24. Nxf3 {[%clk 0:01:22.6]} 24... Rd8 {[%clk 0:01:02.4]} 25. e5
{[%clk 0:01:22.2]} 25... Qe7 {[%clk 0:01:00.3]} 26. Rd1 {[%clk 0:01:18.8]} 26...
Rxd6 {[%clk 0:00:58.7]} 27. exd6 {[%clk 0:01:19.7]} 27... Qf6 {[%clk 0:00:59]}
28. Qf2 {[%clk 0:01:06.2]} 28... Bd7 {[%clk 0:00:55.4]} 29. Qxh4 {[%clk
0:01:03.7]} 29... Qxh4 {[%clk 0:00:53.7]} 30. Nxh4 {[%clk 0:01:04.6]} 30... Ng5
{[%clk 0:00:50.9]} 31. Nf3 {[%clk 0:01:04]} 31... f6 {[%clk 0:00:49.9]} 32. Re1
{[%clk 0:00:52.1]} 32... Ne6 {[%clk 0:00:42.1]} 33. Nh4 {[%clk 0:00:42.6]} 33...
Rd8 {[%clk 0:00:27.2]} 34. Nf5 {[%clk 0:00:42.2]} 34... Kf7 {[%clk 0:00:27.4]}
35. h4 {[%clk 0:00:40.5]} 35... Bc8 {[%clk 0:00:25.6]} 36. Kf2 {[%clk
0:00:37.1]} 36... Nc5 {[%clk 0:00:20.3]} 37. Re7+ {[%clk 0:00:35.8]} 37... Kf8
{[%clk 0:00:18.9]} 38. Rh7 {[%clk 0:00:33.9]} 38... Kg8 {[%clk 0:00:19.2]} 39.
Rg7+ {[%clk 0:00:29.1]} 39... Kf8 {[%clk 0:00:19.7]} 40. Rh7 {[%clk 0:00:18]}
40... Kg8 {[%clk 0:00:19.8]} 41. Rg7+ {[%clk 0:00:09]} 41... Kf8 {[%clk
0:00:19.4]} 42. Rh7 {[%clk 0:00:09.3]} 1/2-1/2

[Event "Late-Titled-Tuesday-Blitz-June-18-2024"]
[Site "Chess.com"]
[Date "2024.06.18"]
[Round "5"]
[White "harshu27"]
[Black "Andrei_Skvortsov"]
[Result "1-0"]
[WhiteElo "2564"]
[BlackElo "2762"]
[TimeControl "180+1"]
[EndTime "14:57:51 PDT"]
[Termination "harshu27 won by resignation"]

1. d4 {[%clk 0:03:00.9]} 1... e6 {[%clk 0:02:58.4]} 2. e4 {[%clk 0:02:57.7]}
2... d5 {[%clk 0:02:57.6]} 3. Nc3 {[%clk 0:02:57.8]} 3... Nf6 {[%clk 0:02:56.9]}
4. e5 {[%clk 0:02:55.1]} 4... Nfd7 {[%clk 0:02:57.4]} 5. f4 {[%clk 0:02:55.6]}
5... c5 {[%clk 0:02:51.7]} 6. Nf3 {[%clk 0:02:55.2]} 6... Nc6 {[%clk 0:02:51.3]}
7. Be3 {[%clk 0:02:54.6]} 7... Rb8 {[%clk 0:02:39.4]} 8. Qd2 {[%clk 0:02:48]}
8... Qa5 {[%clk 0:02:37]} 9. Ne2 {[%clk 0:02:40.6]} 9... Qxd2+ {[%clk 0:02:36]}
10. Kxd2 {[%clk 0:02:39.7]} 10... cxd4 {[%clk 0:02:35.1]} 11. Nexd4 {[%clk
0:02:39.3]} 11... Nxd4 {[%clk 0:02:35.1]} 12. Bxd4 {[%clk 0:02:37.2]} 12... Nc5
{[%clk 0:02:33.3]} 13. Bd3 {[%clk 0:02:34.7]} 13... a6 {[%clk 0:02:31.9]} 14.
Rab1 {[%clk 0:02:14.8]} 14... b5 {[%clk 0:02:30.7]} 15. b4 {[%clk 0:02:07.3]}
15... Na4 {[%clk 0:02:28.4]} 16. c3 {[%clk 0:02:05.1]} 16... Be7 {[%clk
0:02:26]} 17. g4 {[%clk 0:02:03.3]} 17... h5 {[%clk 0:02:24.7]} 18. Rbg1 {[%clk
0:01:58.9]} 18... hxg4 {[%clk 0:02:23.9]} 19. Rxg4 {[%clk 0:01:59.8]} 19... g6
{[%clk 0:02:23.7]} 20. h4 {[%clk 0:01:54.4]} 20... Rb7 {[%clk 0:02:09.3]} 21.
Rg2 {[%clk 0:01:49.8]} 21... Nb6 {[%clk 0:02:05.6]} 22. Rgh2 {[%clk 0:01:48.2]}
22... Rh5 {[%clk 0:02:02.5]} 23. Ng5 {[%clk 0:01:47]} 23... Nc4+ {[%clk
0:02:01.5]} 24. Kc2 {[%clk 0:01:39]} 24... a5 {[%clk 0:02:01.4]} 25. Be2 {[%clk
0:01:36.1]} 25... Rh8 {[%clk 0:01:52.8]} 26. h5 {[%clk 0:01:18.2]} 26... gxh5
{[%clk 0:01:51.7]} 27. Rxh5 {[%clk 0:01:17.9]} 27... Rg8 {[%clk 0:01:47.6]} 28.
Rh8 {[%clk 0:01:08.4]} 28... Rf8 {[%clk 0:01:41.7]} 29. Rxf8+ {[%clk 0:01:02]}
29... Bxf8 {[%clk 0:01:42.3]} 30. Rh8 {[%clk 0:01:02]} 30... axb4 {[%clk
0:01:29]} 31. Nh7 {[%clk 0:00:47.8]} 31... bxc3 {[%clk 0:01:25.3]} 32. Rxf8+
{[%clk 0:00:37]} 32... Kd7 {[%clk 0:01:22.8]} 33. Rxf7+ {[%clk 0:00:26.6]} 33...
Kc6 {[%clk 0:01:22.9]} 34. Rxb7 {[%clk 0:00:26.6]} 34... Bxb7 {[%clk 0:01:16.5]}
35. Kxc3 {[%clk 0:00:18.4]} 35... Bc8 {[%clk 0:01:13.1]} 36. Ng5 {[%clk
0:00:16.2]} 36... Kd7 {[%clk 0:01:07.8]} 37. Nf3 {[%clk 0:00:14.7]} 37... Kc6
{[%clk 0:01:05.9]} 38. Nd2 {[%clk 0:00:14.9]} 38... Na5 {[%clk 0:00:58.8]} 39.
Kb4 {[%clk 0:00:13.2]} 39... Nc4 {[%clk 0:00:57.7]} 40. Nxc4 {[%clk 0:00:13.2]}
40... bxc4 {[%clk 0:00:57.3]} 41. a4 {[%clk 0:00:13.1]} 41... Ba6 {[%clk
0:00:56.3]} 42. Bg4 {[%clk 0:00:11.9]} 42... Bc8 {[%clk 0:00:56.8]} 43. a5
{[%clk 0:00:12]} 43... Bd7 {[%clk 0:00:53.9]} 44. Bd1 {[%clk 0:00:10.4]} 44...
Bc8 {[%clk 0:00:54.3]} 45. Ba4+ {[%clk 0:00:10.5]} 45... Kc7 {[%clk 0:00:54.6]}
46. Kc5 {[%clk 0:00:08.5]} 46... Bb7 {[%clk 0:00:52.4]} 47. Bb5 {[%clk
0:00:08.7]} 47... Bc8 {[%clk 0:00:43.1]} 48. a6 {[%clk 0:00:08]} 48... Kb8
{[%clk 0:00:42.9]} 49. Kb6 {[%clk 0:00:07]} 1-0